{"text_format":"1","workbook":"xlsx","n_sheets":10,"sheets":["Network Apps Narrative","Table 1 Light Load Demand","Table 2 Summer Demand","Table 3 Winter Demand","Table 4 Energy Requirements","Table 5 Resource Descriptions","Table 6 SummerResource Forecast","Table 7 WinterResource Forecast","Table 8 Receipt Points","Table 9 Base Plan Funding"],"not_rendered":{"charts":0,"images":2,"macros":1,"external_links":0,"defined_names":40,"comments":2,"pivot_tables":0},"unopened":[],"bounds":{"document_bytes":16777216,"sheet_cells":100000,"rows_first":2000,"rows_last":500,"rows_between":2000,"halvings":0,"cell_chars":16384,"cell_head_chars":4096},"cells_cut":0,"cells_raw":0,"read":"whole","date_system":"1900"}

{"sheet":"Network Apps Narrative","index":0,"n_rows":39,"n_cols":9,"rows_kept":39,"cut":false,"hidden":false,"merged":[[24,0,24,7],[25,1,25,7],[34,0,34,7],[26,1,26,7],[27,1,27,7],[28,1,28,7],[29,1,29,7],[30,1,30,7],[31,1,31,7],[20,1,20,5],[20,6,20,7],[21,1,21,5],[21,6,21,7],[22,1,22,2],[22,3,22,8],[19,1,19,5],[19,6,19,7],[14,0,14,4],[14,5,14,8],[16,1,16,5],[16,6,16,7],[17,1,17,5],[17,6,17,7],[12,0,12,4],[12,5,12,8],[13,0,13,4],[13,5,13,8],[18,1,18,5],[18,6,18,7],[10,0,10,4],[10,5,10,8],[11,0,11,4],[11,5,11,8],[8,0,8,4],[7,0,7,4],[7,5,7,8],[8,5,8,8],[9,0,9,4],[9,5,9,8],[1,0,1,8],[2,0,2,8],[3,0,3,8],[3,10,3,11],[4,0,4,8]]}
[null,null,null,null,null,null,null,"Revised","2026-08-19"]
["Southwest Power Pool "]
["Application for Network Integration Transmission Service"]
["All sections must be completed.  Incomplete Applications will not be accepted."]
["Enter Data in Blue-Shaded Areas"]
["Date Application Submitted"]
[]
["Applicant (Company Name) Requesting Service\nName of entity that will be contracting for SPP service"]
["Point of Contact (Name of individual)"]
["Point of Contact's Company, if different from Applicant"]
["Applicant's Mailing Address"]
["City, State Zip"]
["Phone Number (No dashes)"]
["Fax #"]
["Email Address"]
[]
["Place \"X\" in only one box.","Purpose of Application",null,null,null,null,"Associated \nStudy Agreement to be Submitted with Application",null,"Associated OASIS Reference Number(s)"]
[null,"A. Initial Application for SPP Network Integration Transmission Service (NITS) (SPP Business Practice 4050)",null,null,null,null,"Aggregate Facilities Study Agreement (https://opsportal.spp.org/documents/studies/AFSA_2021-04-29_Final.doc) or \nExpedited Designation Study Agreement (https://opsportal.spp.org/documents/studies/Expedited_Designation_StudyAgreement.doc)"]
[null,"B. Designate a New Resource or Increase an Existing Resource",null,null,null,null,"Aggregate Facilities Study Agreement (https://opsportal.spp.org/documents/studies/AFSA_2021-04-29_Final.doc) or \nExpedited Designation Study Agreement (https://opsportal.spp.org/documents/studies/Expedited_Designation_StudyAgreement.doc)"]
[null,"C. Re-assign SPP NITS to another Eligible Customer",null,null,null,null,"None"]
[null,"D. Update Annual Load and Resource Information as required by  Network Operating Agreement",null,null,null,null,"None",null,"NA"]
[null,"E. Other (Please explain below)"]
[null,"Explain if \"Other\""]
[]
["Part IV. \nBy submitting this Application, the Applicant states the following:",null,null,null,null,null,null,null,"Required Attachments"]
["(ii)","Applicant is, or will be upon commencement of service, an Eligible Customer under the Tariff."]
["(iii)","A description of the Network Load at each delivery point is attached to this Application.",null,null,null,null,null,null,"Table 1 \nTable 2\nTable 3"]
["(iv)","The amount and location of any interruptible loads included in the Network Load is attached to this Application.",null,null,null,null,null,null,"Table 1 \nTable 2\nTable 3"]
["(v)","A description of Network Resources (current and 10-year projection) is attached to this Application.",null,null,null,null,null,null,"Table 5\nTable 6 \nTable 7"]
["(vi)","Description of Eligible Customer's transmission system is attached to this Application or is included in the current SPP MDAG model.  Maps and descriptions shall be provided upon request.",null,null,null,null,null,null,"As Needed"]
["(vii)","Service Commencement Date and the term of the requested service are specified by the OASIS request(s) referenced above.",null,null,null,null,null,null,"NA"]
["(viii)","Applicant has submitted or will submit an attestation as required by Section 29.2 (viii)\n"]
[]
["Part V. Base Plan Funding Worksheet",null,null,null,null,null,null,null,"Required Attachments"]
["Applications for New or Changed Designated Resources must complete the Base Plan Funding Worksheet in Table 9. This information is intended to help customers estimate where they stand in regards to Base Plan Funding thresholds per Attachment J, Section III.B.1.  When the study commences, SPP will perform calculations for official Base Plan Funding eligibility based on the current status of all existing and requested transmission service as of the study start date.  ",null,null,null,null,null,null,null,"Table 9"]
[]
["Submit Completed Applications by email to:"]
[null,"Transmission Services"]
[null,"Email:","TS@spp.org",null,"Aggregate Study and all other purposes"]

{"sheet":"Table 1 Light Load Demand","index":1,"n_rows":57,"n_cols":17,"rows_kept":57,"cut":false,"hidden":false,"merged":[]}
["Network Load Per OATT 29.2(iii)"]
["CONTROL AREA ",null,null,null,"Data input fields"]
["LIGHT LOAD 10 YR LOAD FORECAST DEMAND",null,null,null,"Formula fields, do not input data"]
["FIRM LOAD AS MODELED IN CURRENT ITP POWER FLOW MODEL "]
["SPP Bus #","Modeling Load ID (Needed to determine when multiple customer loads are at a Bus #)","Are there multiple customer loads at this Bus # and Load ID ? (Yes/No)","Delivery Point Name ","Delivery Point Ownership","Power Factor ","Voltage (kV)","2027 (MW)","2028 (MW)","2029 (MW)","2030 (MW)","2031 (MW)","2032 (MW)","2033 (MW)","2034 (MW)","2035 (MW)","2036 (MW)"]
[]
[]
[]
[]
[]
[]
[]
[]
[]
[]
[]
[]
[]
[]
[]
[]
[]
[]
[]
[]
[]
[]
[]
[]
[]
[]
[]
[]
[]
[]
[null,null,null,"TOTAL FIRM LOAD MODELED",null,null,null,{"$f":"SUM(H6:H35)","v":0},{"$f":"SUM(I6:I35)","v":0},{"$f":"SUM(J6:J35)","v":0},{"$f":"SUM(K6:K35)","v":0},{"$f":"SUM(L6:L35)","v":0},null,null,{"$f":"SUM(O6:O35)","v":0},{"$f":"SUM(P6:P35)","v":0},{"$f":"SUM(Q6:Q35)","v":0}]
[null,null,null,"TOTAL TRANSMISSION LOSSES"]
[null,null,null,"TOTAL FIRM LOAD MODELED PLUS LOSSES",null,null,null,{"$f":"H36+H37","v":0},{"$f":"I36+I37","v":0},{"$f":"J36+J37","v":0},{"$f":"K36+K37","v":0},{"$f":"L36+L37","v":0},null,null,{"$f":"O36+O37","v":0},{"$f":"P36+P37","v":0},{"$f":"Q36+Q37","v":0}]
["FIRM LOAD OFF SYSTEM to be served as SPP NITS- Other Interconnections (not included in SPP ITP Power Flow Models)"]
[]
[]
[]
[]
[null,null,null,"TOTAL FIRM LOAD-OFF SYSTEM",null,null,null,{"$f":"SUM(H40:H43)","v":0},{"$f":"SUM(I40:I43)","v":0},{"$f":"SUM(J40:J43)","v":0},{"$f":"SUM(K40:K43)","v":0},{"$f":"SUM(L40:L43)","v":0},null,null,{"$f":"SUM(O40:O43)","v":0},{"$f":"SUM(P40:P43)","v":0},{"$f":"SUM(Q40:Q43)","v":0}]
[null,null,null,"TOTAL TRANSMISSION LOSSES-OFF SYSTEM"]
[null,null,null,"TOTAL FIRM LOAD OFF SYSTEM PLUS LOSSES",null,null,null,{"$f":"H44+H45","v":0},{"$f":"I44+I45","v":0},{"$f":"J44+J45","v":0},{"$f":"K44+K45","v":0},{"$f":"L44+L45","v":0},null,null,{"$f":"O44+O45","v":0},{"$f":"P44+P45","v":0},{"$f":"Q44+Q45","v":0}]
["INTERRUPTIBLE LOAD"]
["Need breakdown by delivery point of amount of load that is interruptible"]
[]
[]
[]
[]
[]
[null,null,null,"TOTAL INTERRUPTIBLE LOAD",null,null,null,{"$f":"SUM(H49:H53)","v":0},{"$f":"SUM(I49:I53)","v":0},{"$f":"SUM(J49:J53)","v":0},{"$f":"SUM(K49:K53)","v":0},{"$f":"SUM(L49:L53)","v":0},null,null,{"$f":"SUM(O49:O53)","v":0},{"$f":"SUM(P49:P53)","v":0},{"$f":"SUM(Q49:Q53)","v":0}]
[null,null,null,"TOTAL TRANSMISSION LOSSES"]
[null,null,null,"TOTAL INTERRUPTIBLE LOAD PLUS LOSSES",null,null,null,{"$f":"H54+H55","v":0},{"$f":"I54+I55","v":0},{"$f":"J54+J55","v":0},{"$f":"K54+K55","v":0},{"$f":"L54+L55","v":0},null,null,{"$f":"O54+O55","v":0},{"$f":"P54+P55","v":0},{"$f":"Q54+Q55","v":0}]
[null,null,null,"TOTAL  LOAD PLUS LOSSES- Summer",null,null,null,{"$f":"H56+H46+H38","v":0},{"$f":"I56+I46+I38","v":0},{"$f":"J56+J46+J38","v":0},{"$f":"K56+K46+K38","v":0},{"$f":"L56+L46+L38","v":0},null,null,{"$f":"O56+O46+O38","v":0},{"$f":"P56+P46+P38","v":0},{"$f":"Q56+Q46+Q38","v":0}]

{"sheet":"Table 2 Summer Demand","index":2,"n_rows":57,"n_cols":17,"rows_kept":57,"cut":false,"hidden":false,"merged":[]}
["Network Load Per OATT 29.2(iii)"]
["CONTROL AREA ",null,null,null,"Data input fields"]
["SUMMER 10 YR LOAD FORECAST DEMAND",null,null,null,"Formula fields, do not input data"]
["FIRM LOAD AS MODELED IN CURRENT ITP POWER FLOW MODEL "]
["SPP Bus #","Modeling Load ID (Needed to determine when multiple customer loads are at a Bus #)","Are there multiple customer loads at this Bus # and Load ID ? (Yes/No)","Delivery Point Name ","Delivery Point Ownership","Power Factor ","Voltage (kV)","2027 (MW)","2028 (MW)","2029 (MW)","2030 (MW)","2031 (MW)","2032 (MW)","2033 (MW)","2034 (MW)","2035 (MW)","2036 (MW)"]
[]
[]
[]
[]
[]
[]
[]
[]
[]
[]
[]
[]
[]
[]
[]
[]
[]
[]
[]
[]
[]
[]
[]
[]
[]
[]
[]
[]
[]
[]
[null,null,null,"TOTAL FIRM LOAD MODELED",null,null,null,{"$f":"SUM(H6:H35)","v":0},0,0,0,0,0,0,0,null,{"$f":"SUM(Q6:Q35)","v":0}]
[null,null,null,"TOTAL TRANSMISSION LOSSES"]
[null,null,null,"TOTAL FIRM LOAD MODELED PLUS LOSSES",null,null,null,{"$f":"H36+H37","v":0},0,0,0,0,0,0,0,null,{"$f":"Q36+Q37","v":0}]
["FIRM LOAD OFF SYSTEM to be served as SPP NITS- Other Interconnections (not included in SPP ITP Power Flow Models)"]
[]
[]
[]
[]
[null,null,null,"TOTAL FIRM LOAD-OFF SYSTEM",null,null,null,{"$f":"SUM(H40:H43)","v":0},0,0,0,0,0,0,0,null,{"$f":"SUM(Q40:Q43)","v":0}]
[null,null,null,"TOTAL TRANSMISSION LOSSES-OFF SYSTEM"]
[null,null,null,"TOTAL FIRM LOAD OFF SYSTEM PLUS LOSSES",null,null,null,{"$f":"H44+H45","v":0},0,0,0,0,0,0,0,null,{"$f":"Q44+Q45","v":0}]
["INTERRUPTIBLE LOAD"]
["Need breakdown by delivery point of amount of load that is interruptible"]
[]
[]
[]
[]
[]
[null,null,null,"TOTAL INTERRUPTIBLE LOAD",null,null,null,{"$f":"SUM(H49:H53)","v":0},0,0,0,0,0,0,0,null,{"$f":"SUM(Q49:Q53)","v":0}]
[null,null,null,"TOTAL TRANSMISSION LOSSES"]
[null,null,null,"TOTAL INTERRUPTIBLE LOAD PLUS LOSSES",null,null,null,{"$f":"H54+H55","v":0},0,0,0,0,0,0,0,null,{"$f":"Q54+Q55","v":0}]
[null,null,null,"TOTAL  LOAD PLUS LOSSES- Summer",null,null,null,{"$f":"H56+H46+H38","v":0},0,0,0,0,0,0,0,null,{"$f":"Q56+Q46+Q38","v":0}]

{"sheet":"Table 3 Winter Demand","index":3,"n_rows":57,"n_cols":17,"rows_kept":57,"cut":false,"hidden":false,"merged":[]}
["Network Load Per OATT 29.2(iii)"]
["CONTROL AREA ",null,null,null,"Data input fields"]
["WINTER 10 YR LOAD FORECAST DEMAND",null,null,null,"Formula fields, do not input data"]
["FIRM LOAD AS MODELED IN CURRENT ITP POWER FLOW MODEL "]
["SPP Bus #","Modeling Load ID (Needed to determine when multiple customer loads are at a Bus #)","Are there multiple customer loads at this Bus # and Load ID ? (Yes/No)","Delivery Point Name ","Delivery Point Ownership","Power Factor ","Voltage (kV)","2027 (MW)","2028 (MW)","2029 (MW)","2030 (MW)","2031 (MW)","2032 (MW)","2033 (MW)","2034 (MW)","2035 (MW)","2036 (MW)"]
[]
[]
[]
[]
[]
[]
[]
[]
[]
[]
[]
[]
[]
[]
[]
[]
[]
[]
[]
[]
[]
[]
[]
[]
[]
[]
[]
[]
[]
[]
[null,null,null,"TOTAL FIRM LOAD MODELED",null,null,null,{"$f":"SUM(H6:H35)","v":0},0,0,0,0,0,0,0,null,{"$f":"SUM(Q6:Q35)","v":0}]
[null,null,null,"TOTAL TRANSMISSION LOSSES"]
[null,null,null,"TOTAL FIRM LOAD MODELED PLUS LOSSES",null,null,null,{"$f":"H36+H37","v":0},0,0,0,0,0,0,0,null,{"$f":"Q36+Q37","v":0}]
["FIRM LOAD OFF SYSTEM to be served as SPP NITS- Other Interconnections (not included in SPP ITP Power Flow Models)"]
[" "]
[]
[]
[]
[null,null,null,"TOTAL FIRM LOAD-OFF SYSTEM",null,null,null,{"$f":"SUM(H40:H43)","v":0},0,0,0,0,0,{"$f":"SUM(N40:N43)","v":0},{"$f":"SUM(O40:O43)","v":0},null,{"$f":"SUM(Q40:Q43)","v":0}]
[null,null,null,"TOTAL TRANSMISSION LOSSES-OFF SYSTEM"]
[null,null,null,"TOTAL FIRM LOAD OFF SYSTEM PLUS LOSSES",null,null,null,{"$f":"H44+H45","v":0},0,0,0,0,0,{"$f":"N44+N45","v":0},{"$f":"O44+O45","v":0},null,{"$f":"Q44+Q45","v":0}]
["INTERRUPTIBLE LOAD"]
["Need breakdown by delivery point of amount of load that is interruptible"]
[]
[]
[]
[]
[]
[null,null,null,"TOTAL INTERRUPTIBLE LOAD",null,null,null,{"$f":"SUM(H49:H53)","v":0},0,0,0,0,0,0,0,null,{"$f":"SUM(Q49:Q53)","v":0}]
[null,null,null,"TOTAL TRANSMISSION LOSSES"]
[null,null,null,"TOTAL INTERRUPTIBLE LOAD PLUS LOSSES",null,null,null,{"$f":"H54+H55","v":0},0,0,0,0,0,0,0,null,{"$f":"Q54+Q55","v":0}]
[null,null,null,"TOTAL  LOAD PLUS LOSSES- Summer",null,null,null,{"$f":"H56+H46+H38","v":0},0,0,0,0,0,0,0,null,{"$f":"Q56+Q46+Q38","v":0}]

{"sheet":"Table 4 Energy Requirements","index":4,"n_rows":29,"n_cols":14,"rows_kept":29,"cut":false,"hidden":false,"merged":[]}
["Network Load Per OATT 29.2(iii)"]
["CONTROL AREA ",null,null,"Data input fields"]
["10 YEAR FORECAST OF ANNUAL AGGREGATE ENERGY REQUIREMENTS (GWH)",null,null,"Formula fields, do not input data"]
["FIRM LOAD AS MODELED IN CURRENT ITP POWER FLOW MODEL "]
["NATIVE LOAD ","Delivery Point Name","Delivery Point Ownership","Voltage (kV)","2027 (GWH)","2028 (GWH)","2029 (GWH)","2030 (GWH)","2031 (GWH)","2032 (GWH)","2033 (GWH)","2034 (GWH)","2035 (GWH)","2036 (GWH)"]
["Only required for rollover to SPP NITS or annual update"]
[]
[]
[]
[]
["FIRM LOAD OFF SYSTEM to be served as SPP NITS- Other Interconnections (not included in SPP ITP Power Flow Models)"]
[]
[]
[]
[]
[]
[]
["TOTAL ENERGY REQUIREMENTS ON AN AGGREGATE BASIS (GWH) FIRM LOAD",null,null,null,{"$f":"SUM(E6:E17)","v":0},0,0,0,0,0,{"$f":"SUM(K6:K17)","v":0},0,null,{"$f":"SUM(N6:N17)","v":0}]
["INTERRUPTIBLE LOAD"]
["Need breakdown by delivery point of each"," "]
[]
[]
[]
[]
[null," "]
[]
[null,"TOTAL ENERGY REQUIREMENTS INTERRUPTIBLE LOAD (GWH)",null,null,{"$f":"SUM(E20:E26)","v":0},{"$f":"SUM(F20:F26)","v":0},{"$f":"SUM(G20:G26)","v":0},{"$f":"SUM(H20:H26)","v":0}]
["TOTAL ENERGY REQUIREMENTS"," ",null,null," "," "," "," "]
[null,"TOTAL ANNUAL ENERGY REQUIREMENTS (GWH)",null,null,{"$f":"E18+E27","v":0},{"$f":"F18+F27","v":0},{"$f":"G18+G27","v":0},{"$f":"H18+H27","v":0}]

{"sheet":"Table 5 Resource Descriptions","index":5,"n_rows":51,"n_cols":26,"rows_kept":51,"cut":false,"hidden":false,"merged":[[3,11,3,15],[3,0,5,0],[3,1,5,1],[3,7,5,7],[4,11,5,11],[3,8,4,9],[4,12,5,12],[4,15,5,15],[4,22,5,22],[4,23,5,23],[4,25,5,25],[3,16,3,19],[4,19,5,19],[3,20,3,25],[4,24,5,24],[50,1,57,14],[4,20,5,20],[4,21,5,21],[4,16,5,16],[4,17,5,17],[4,18,5,18],[4,13,5,13],[4,14,5,14],[4,2,4,6]]}
["Table 5"]
["Description of Network Resources (Section 29.2 (v) of OATT)"]
[]
["Resource Description or Unit Name","Location (County/State) ",null,null,null,null,null,"Resource Type (On-SPP System or Off-SPP System)","Maximum Net Dependable Capacity to serve Native Load (MW)",null,null,"On-SPP System Information",null,null,null,null,"Off-SPP System Information",null,null,null,"Operating Restrictions"]
[null,null,"Data required for Proposed Network Resources",null,null,null,null,null,null,null,null,"Unit Capacity Nameplate (MW)","Capacity Designated as Network Resource (MW)","VAR Capability - Leading","VAR Capability - Lagging","Third Party Sale and Delivery Arrangements (Add to comment section below)","Contracted Amount of Capacity Rights (MW)","Originating Control Area(s)","Delivery Point(s) in Transmission Provider's System","External Transmission System Arrangements (Add to comment section below)","Restricted Operation Periods","Maintenance Schedules","Minimum Loading Level (MW)","Normal Operating Level (MW)","Must-Run Unit Designations (List specifics of seasonal loading levels)","Approximate variable generating cost for redispatch ($/MWH)"]
[null,null,"OASIS Number for Proposed Resource under Study","Study Number  for Proposed Resources under Study","SPP Bus # where Generation is modeled","Generator Unit ID # as modeled ","Generator Interconnect Procedure Study #",null,"Summer","Winter","Designated Firm Transmission Capacity Rights to serve NITS load (MW)"]
["This Table's  intent is to list  data on existing and proposed designated network resources. If a Joint Ownership resource list ownership percentage."," ",null,null,null,null,null,null,null,null,null,null,null,null,null,null,null,null,null,null,null,"Not required for AG studies."]
["Existing Non Wind Resources"," "]
[]
[]
[]
[]
[]
[]
["Proposed Non Wind Resources"]
[]
[]
[]
[]
[]
[]
["Existing Wind Resources",null,null,null,null,null,null,null,"List the net dependable rating for wind either from wind data or default of 0MW per SPP Criteria 12.1.2.3g.v"]
[]
[]
[]
[]
[]
[]
["Proposed Wind Resources"]
[]
[]
[]
[]
[]
[]
[]
[]
[]
[]
[]
[]
[]
[]
[]
[]
[]
[]
[]
[]
[]
["Comments:"]

{"sheet":"Table 6 SummerResource Forecast","index":6,"n_rows":80,"n_cols":23,"rows_kept":80,"cut":false,"hidden":false,"merged":[[6,15,6,16],[6,21,6,22],[6,13,6,14],[6,7,6,8],[6,9,6,10],[6,17,6,18],[6,19,6,20],[1,0,3,0],[6,1,6,2],[6,11,6,12],[6,3,6,4],[6,5,6,6]]}
[]
["Summer Network Resource Forecast Per OATT 29.2 (v)"]
[]
[]
["Total MW Input to System available as a Network Resource"]
["Customer Owned Network Resources and Firm Purchases - both Proposed and Existing - are taken into consideration when Calculating Base Plan Funding eligibility. See Table 9 for additional information."]
[null,"Data required for Proposed Network Resources",null,"2027 (MW)",null,"2028 (MW)",null,"2029 (MW)",null,"2030 (MW)",null,"2031 (MW)",null,"2032 (MW)",null,"2033 (MW)",null,"2034 (MW)",null,"2035 (MW)",null,"2036 (MW)"]
[" ","OASIS Number for Proposed Resource under Study","Study Number  for Proposed Resources under Study","Requested Capacity","Net Dependable Capacity","Requested Capacity","Net Dependable Capacity","Requested Capacity","Net Dependable Capacity","Requested Capacity","Net Dependable Capacity","Requested Capacity","Net Dependable Capacity","Requested Capacity","Net Dependable Capacity","Requested Capacity","Net Dependable Capacity","Requested Capacity","Net Dependable Capacity","Requested Capacity","Net Dependable Capacity","Requested Capacity","Net Dependable Capacity"]
["Customer Owned Network Resources"]
["Customer Owned Existing Non Wind Resources"]
[]
[]
[]
[]
["Customer Owned Proposed Non Wind Resources"," "," "]
[" "]
[" "]
[]
[]
["Subtotal Customer Owned Non Wind Network Resources MW"," ",null,{"$f":"SUM(D11:D19)","v":0},0,0,0,0,0,0,0,0,0,0,0,0,0,0,0,{"$f":"SUM(T11:T19)","v":0},{"$f":"SUM(U11:U19)","v":0},0,0]
[" "]
["Customer Owned Existing Wind Resources"]
["(Net dependable rating for wind either from wind data or default of 0MW per SPP Criteria 12.1.2.3g.v)"]
[]
[]
[]
[]
["Customer Owned Proposed Wind Resources"," "," "]
[]
[]
[]
[]
["Subtotal Customer Owned Wind Generation MW",null,null,{"$f":"SUM(D24:D32)","v":0},0,0,0,0,0,0,0,0,0,0,0,{"$f":"SUM(P24:P32)","v":0},0,0,0,{"$f":"SUM(T24:T32)","v":0},{"$f":"SUM(U24:U32)","v":0},0,0]
[]
["Total Owned Network Resources  MW",null,null,{"$f":"D20+D33","v":0},0,0,0,0,0,0,0,0,0,0,0,0,0,{"$f":"R20+R33","v":0},0,0,0,0,0]
[]
["Firm Purchases designated as a network resource"]
["Non Wind Existing Resource Firm Purchases MW"]
[]
[]
[]
[]
["Non Wind Proposed Resource Firm Purchases MW"]
[]
[]
[]
[" "]
["Subtotal Non Wind Firm Purchases MW",null,null,{"$f":"SUM(D39:D47)","v":0},0,0,0,0,0,0,0,{"$f":"SUM(L39:L47)","v":0},0,0,0,{"$f":"SUM(P39:P47)","v":0},{"$f":"SUM(Q39:Q47)","v":0},0,0,{"$f":"SUM(T39:T47)","v":0},{"$f":"SUM(U39:U47)","v":0},{"$f":"SUM(V39:V47)","v":0},{"$f":"SUM(W39:W47)","v":0}]
[]
["Wind Existing Resource Firm Purchases MW"]
[]
[]
[]
[]
["Wind Proposed Wind Resource Purchases"]
[]
[]
[]
[]
["Subtotal Wind Firm Purchases MW",null,null,{"$f":"SUM(D51:D59)","v":0},0,0,0,0,0,0,0,0,0,0,0,{"$f":"SUM(P51:P59)","v":0},0,0,0,{"$f":"SUM(T51:T59)","v":0},{"$f":"SUM(U51:U59)","v":0},0,0]
[]
["Total Purchases to serve native load",null,null,{"$f":"D60+D48","v":0},0,0,0,0,0,0,0,0,0,0,0,{"$f":"P60+P48","v":0},0,0,0,{"$f":"T60+T48","v":0},{"$f":"U60+U48","v":0},0,0]
[]
["Sales and delivery to third parties from generating facilities located in the Transmission Provider Balancing Authority Area, where only a portion of unit output is designated as a Network Resource (sales are not included in formulas for BPF calculations)"]
[]
[]
[]
[]
["Total Sales (not included in formulas for BPF calculations)",null,null,{"$f":"SUM(D65:D68)","v":0},0,0,0,0,0,0,0,0,0,0,0,0,0,0,0,{"$f":"SUM(T65:T68)","v":0},{"$f":"SUM(U65:U68)","v":0},0,0]
[]
["The below equations for Total Resource to Load Ratio (125% cap) or the sum of 110% and the current Planning Reserve Margin percentage set forth in the SPP Planning Criteria, Wind Resource to Load Ratio (20% cap), and Maximum Resources Potential  BPF per Year of Start of Service, are used to assist the customer in evaluating preliminary Base Plan funding eligibility pursuant to Attachment J §III.B.1. These formulas are intended to help customers estimate where they stand in regards to Base Plan Funding thresholds.  When the study commences, SPP will perform calculations for official Base Plan Funding eligibility based on the current status of all existing and requested transmission service as of the study start date.  See Table 9 for additional information, and to complete the preliminary assessment for estimated eligibility calculations for Base Plan Funding. \n\nIf a Customer has multiple NITS Agreements, SPP will combine the resources and loads from the associated NITS Agreements or NITS Applications when performing these BPF calculations."]
[]
["Wind Network Resources available to serve native load (total owned generation plus purchases)",null,null,{"$f":"D33+D60","v":0},{"$f":"E33+E60","v":0},0,0,0,0,0,0,0,0,0,0,0,0,{"$f":"R33+R60","v":0},0,0,0,0,0]
["All Network Resources available to serve native load (total owned generation plus purchases)",null,null,{"$f":"D35+D62","v":0},{"$f":"E35+E62","v":0},0,0,0,0,0,0,0,0,0,0,0,0,0,0,0,0,0,0]
[]
["Total Resource to Load Ratio  (Refer to cell A71)",null,null,null,{"$f":"E74/MAX('Table 2 Summer Demand'!H38)","v":{"$error":"#DIV/0!"}},null,{"$f":"G74/MAX('Table 2 Summer Demand'!I38)","v":{"$error":"#DIV/0!"}},null,{"$f":"I74/MAX('Table 2 Summer Demand'!J38)","v":{"$error":"#DIV/0!"}},null,{"$f":"K74/MAX('Table 2 Summer Demand'!K38)","v":{"$error":"#DIV/0!"}},null,{"$f":"M74/MAX('Table 2 Summer Demand'!L38)","v":{"$error":"#DIV/0!"}},null,{"$f":"O74/MAX('Table 2 Summer Demand'!M38)","v":{"$error":"#DIV/0!"}},null,{"$f":"Q74/MAX('Table 2 Summer Demand'!N38)","v":{"$error":"#DIV/0!"}},null,{"$f":"S74/MAX('Table 2 Summer Demand'!O38)","v":{"$error":"#DIV/0!"}},null,{"$f":"U74/MAX('Table 2 Summer Demand'!P38)","v":{"$error":"#DIV/0!"}},null,{"$f":"W74/MAX('Table 2 Summer Demand'!Q38)","v":{"$error":"#DIV/0!"}}]
[]
["Wind Resource to Load Ratio (20%  Cap)",null,null,{"$f":"(D33+D60)/MAX('Table 2 Summer Demand'!H38)","v":{"$error":"#DIV/0!"}},null,{"$f":"(F33+F60)/MAX('Table 2 Summer Demand'!I38)","v":{"$error":"#DIV/0!"}},null,{"$f":"(H33+H60)/MAX('Table 2 Summer Demand'!J38)","v":{"$error":"#DIV/0!"}},null,{"$f":"(J33+J60)/MAX('Table 2 Summer Demand'!K38)","v":{"$error":"#DIV/0!"}},null,{"$f":"(L33+L60)/MAX('Table 2 Summer Demand'!L38)","v":{"$error":"#DIV/0!"}},null,{"$f":"(N33+N60)/MAX('Table 2 Summer Demand'!M38)","v":{"$error":"#DIV/0!"}},null,{"$f":"(P33+P60)/MAX('Table 2 Summer Demand'!N38)","v":{"$error":"#DIV/0!"}},null,{"$f":"(R33+R60)/MAX('Table 2 Summer Demand'!O38)","v":{"$error":"#DIV/0!"}},null,{"$f":"(T33+T60)/MAX('Table 2 Summer Demand'!P38)","v":{"$error":"#DIV/0!"}},null,{"$f":"(V33+V60)/MAX('Table 2 Summer Demand'!Q38)","v":{"$error":"#DIV/0!"}}]
[]
["Maximum Resources Potential  BPF per Year of Start of Service",null,null,{"$f":"1.25*MAX('Table 2 Summer Demand'!H38,'Table 3 Winter Demand'!H38)","v":0},null,{"$f":"1.25*MAX('Table 2 Summer Demand'!I38,'Table 3 Winter Demand'!I38)","v":0},null,{"$f":"1.25*MAX('Table 2 Summer Demand'!J38,'Table 3 Winter Demand'!J38)","v":0},null,{"$f":"1.25*MAX('Table 2 Summer Demand'!K38,'Table 3 Winter Demand'!K38)","v":0},null,{"$f":"1.25*MAX('Table 2 Summer Demand'!L38,'Table 3 Winter Demand'!L38)","v":0},null,{"$f":"1.25*MAX('Table 2 Summer Demand'!M38,'Table 3 Winter Demand'!M38)","v":0},null,{"$f":"1.25*MAX('Table 2 Summer Demand'!N38,'Table 3 Winter Demand'!N38)","v":0},null,{"$f":"1.25*MAX('Table 2 Summer Demand'!O38,'Table 3 Winter Demand'!O38)","v":0},null,{"$f":"1.25*MAX('Table 2 Summer Demand'!O38,'Table 3 Winter Demand'!O38)","v":0},null,{"$f":"1.25*MAX('Table 2 Summer Demand'!Q38,'Table 3 Winter Demand'!Q38)","v":0}]

{"sheet":"Table 7 WinterResource Forecast","index":7,"n_rows":80,"n_cols":23,"rows_kept":80,"cut":false,"hidden":false,"merged":[[6,21,6,22],[6,17,6,18],[6,15,6,16],[6,9,6,10],[6,11,6,12],[6,19,6,20],[1,0,3,0],[6,1,6,2],[6,13,6,14],[6,3,6,4],[6,5,6,6],[6,7,6,8]]}
[]
["Winter Network Resource Forecast Per OATT 29.2 (v)"]
[]
[]
["Total MW Input to System available as a Network Resource"]
["Customer Owned Network Resources and Firm Purchases - both Proposed and Existing - are taken into consideration when Calculating Base Plan Funding eligibility. See Table 9 for additional information."]
[null,"Data required for Proposed Network Resources",null,"2027 (MW)",null,"2028 (MW)",null,"2029 (MW)",null,"2030 (MW)",null,"2031 (MW)",null,"2032 (MW)",null,"2033 (MW)",null,"2034 (MW)",null,"2035 (MW)",null,"2036 (MW)"]
[" ","OASIS Number for Proposed Resource under Study","Study Number  for Proposed Resources under Study","Requested Capacity","Net Dependable Capacity","Requested Capacity","Net Dependable Capacity","Requested Capacity","Net Dependable Capacity","Requested Capacity","Net Dependable Capacity","Requested Capacity","Net Dependable Capacity","Requested Capacity","Net Dependable Capacity","Requested Capacity","Net Dependable Capacity","Requested Capacity","Net Dependable Capacity","Requested Capacity","Net Dependable Capacity","Requested Capacity","Net Dependable Capacity"]
["Customer Owned Network Resources"]
["Customer Owned Existing Non Wind Resources"]
[]
[" "]
[]
[]
["Customer Owned Proposed Non Wind Resources"," "," "]
[]
[]
[]
[]
["Subtotal Customer Owned Non Wind Network Resources MW"," ",null,{"$f":"SUM(D11:D19)","v":0},0,0,0,0,0,0,0,0,0,0,0,0,0,0,0,0,0,0,0]
[" "]
["Customer Owned Existing Wind Resources"]
["(Net dependable rating for wind either from wind data or default of 0MW per SPP Criteria 12.1.2.3g.v)"]
[]
[]
[]
[]
["Customer Owned Proposed Wind Resources"," "," "]
[]
[]
[]
[]
["Subtotal Customer Owned Wind Generation MW",null,null,{"$f":"SUM(D24:D32)","v":0},0,0,0,0,0,0,0,0,0,0,0,0,0,0,0,{"$f":"SUM(T24:T32)","v":0},{"$f":"SUM(U24:U32)","v":0},{"$f":"SUM(V24:V32)","v":0},{"$f":"SUM(W24:W32)","v":0}]
[]
["Total Owned Network Resources  MW",null,null,{"$f":"D20+D33","v":0},0,0,0,0,0,0,0,0,0,0,0,0,0,0,0,{"$f":"T20+T33","v":0},{"$f":"U20+U33","v":0},{"$f":"V20+V33","v":0},{"$f":"W20+W33","v":0}]
[]
["Firm Purchases designated as a network resource"]
["Non Wind Existing Resource Firm Purchases MW"]
[]
[]
[]
[]
["Non Wind Proposed Resource Firm Purchases MW"]
[]
[]
[]
[" "]
["Subtotal Non Wind Firm Purchases MW",null,null,{"$f":"SUM(D39:D47)","v":0},0,0,0,0,0,0,0,0,0,0,0,0,0,0,0,{"$f":"SUM(T39:T47)","v":0},{"$f":"SUM(U39:U47)","v":0},{"$f":"SUM(V39:V47)","v":0},{"$f":"SUM(W39:W47)","v":0}]
[]
["Wind Existing Resource Firm Purchases MW"]
[]
[]
[]
[]
["Wind Proposed Wind Resource Purchases"]
[]
[]
[]
[]
["Subtotal Wind Firm Purchases MW",null,null,{"$f":"SUM(D51:D59)","v":0},0,0,0,0,0,0,0,0,0,0,0,0,0,0,0,{"$f":"SUM(T51:T59)","v":0},{"$f":"SUM(U51:U59)","v":0},{"$f":"SUM(V51:V59)","v":0},{"$f":"SUM(W51:W59)","v":0}]
[]
["Total Purchases to serve native load",null,null,{"$f":"D60+D48","v":0},0,0,0,0,0,0,0,0,0,0,0,0,0,0,0,{"$f":"T60+T48","v":0},{"$f":"U60+U48","v":0},{"$f":"V60+V48","v":0},{"$f":"W60+W48","v":0}]
[]
["Sales and delivery to third parties from generating facilities located in the Transmission Provider Balancing Authority Area, where only a portion of unit output is designated as a Network Resource (sales are not included in formulas for BPF calculations)"]
[]
[]
[]
[]
["Total Sales (not included in formulas for BPF calculations)",null,null,{"$f":"SUM(D65:D68)","v":0},0,0,0,0,0,0,0,0,0,0,0,0,0,0,0,{"$f":"SUM(T65:T68)","v":0},{"$f":"SUM(U65:U68)","v":0}]
[]
["The below equations for Total Resource to Load Ratio (125% cap) or the sum of 110% and the current Planning Reserve Margin percentage set forth in the SPP Planning Criteria, Wind Resource to Load Ratio (20% cap), and Maximum Resources Potential  BPF per Year of Start of Service, are used to assist the customer in evaluating preliminary Base Plan funding eligibility pursuant to Attachment J §III.B.1. These formulas are intended to help customers estimate where they stand in regards to Base Plan Funding thresholds.  When the study commences, SPP will perform calculations for official Base Plan Funding eligibility based on the current status of all existing and requested transmission service as of the study start date.  See Table 9 for additional information, and to complete the preliminary assessment for estimated eligibility calculations for Base Plan Funding. \n\nIf a Customer has multiple NITS Agreements, SPP will combine the resources and loads from the associated NITS Agreements or NITS Applications when performing these BPF calculations."]
[]
["Wind Network Resources available to serve native load (total owned generation plus purchases)",null,null,{"$f":"D33+D60","v":0},{"$f":"E33+E60","v":0},0,0,0,0,0,0,0,0,0,0,0,0,0,0,0,0,0,0]
["Network Resources available to serve native load (total owned generation plus purchases)",null,null,{"$f":"D35+D62","v":0},{"$f":"E35+E62","v":0},0,0,0,0,0,0,0,0,0,0,0,0,0,0,0,0,0,0]
[]
["Total Resource to Load Ratio  (Refer to cell A71)",null,null,null,{"$f":"E74/MAX('Table 3 Winter Demand'!H38)","v":{"$error":"#DIV/0!"}},null,{"$f":"G74/MAX('Table 3 Winter Demand'!I38)","v":{"$error":"#DIV/0!"}},null,{"$f":"I74/MAX('Table 3 Winter Demand'!J38)","v":{"$error":"#DIV/0!"}},null,{"$f":"K74/MAX('Table 3 Winter Demand'!K38)","v":{"$error":"#DIV/0!"}},null,{"$f":"M74/MAX('Table 3 Winter Demand'!L38)","v":{"$error":"#DIV/0!"}},null,{"$f":"O74/MAX('Table 3 Winter Demand'!M38)","v":{"$error":"#DIV/0!"}},null,{"$f":"Q74/MAX('Table 3 Winter Demand'!N38)","v":{"$error":"#DIV/0!"}},null,{"$f":"S74/MAX('Table 3 Winter Demand'!O38)","v":{"$error":"#DIV/0!"}},null,{"$f":"U74/MAX('Table 3 Winter Demand'!P38)","v":{"$error":"#DIV/0!"}},null,{"$f":"W74/MAX('Table 3 Winter Demand'!Q38)","v":{"$error":"#DIV/0!"}}]
[]
["Wind Resource to Load Ratio (20%  Cap)",null,null,{"$f":"(D33+D60)/MAX('Table 3 Winter Demand'!H38)","v":{"$error":"#DIV/0!"}},null,{"$f":"(F33+F60)/MAX('Table 3 Winter Demand'!I38)","v":{"$error":"#DIV/0!"}},null,{"$f":"(H33+H60)/MAX('Table 3 Winter Demand'!J38)","v":{"$error":"#DIV/0!"}},null,{"$f":"(J33+J60)/MAX('Table 3 Winter Demand'!K38)","v":{"$error":"#DIV/0!"}},null,{"$f":"(L33+L60)/MAX('Table 3 Winter Demand'!L38)","v":{"$error":"#DIV/0!"}},null,{"$f":"(N33+N60)/MAX('Table 3 Winter Demand'!M38)","v":{"$error":"#DIV/0!"}},null,{"$f":"(P33+P60)/MAX('Table 3 Winter Demand'!N38)","v":{"$error":"#DIV/0!"}},null,{"$f":"(R33+R60)/MAX('Table 3 Winter Demand'!O38)","v":{"$error":"#DIV/0!"}},null,{"$f":"(T33+T60)/MAX('Table 3 Winter Demand'!P38)","v":{"$error":"#DIV/0!"}},null,{"$f":"(V33+V60)/MAX('Table 3 Winter Demand'!Q38)","v":{"$error":"#DIV/0!"}}]
[]
["Maximum Resources Potential  BPF per Year of Start of Service",null,null,{"$f":"1.25*MAX('Table 2 Summer Demand'!H38,'Table 3 Winter Demand'!H38)","v":0},null,{"$f":"1.25*MAX('Table 2 Summer Demand'!I38,'Table 3 Winter Demand'!I38)","v":0},null,{"$f":"1.25*MAX('Table 2 Summer Demand'!J38,'Table 3 Winter Demand'!J38)","v":0},null,{"$f":"1.25*MAX('Table 2 Summer Demand'!K38,'Table 3 Winter Demand'!K38)","v":0},null,{"$f":"1.25*MAX('Table 2 Summer Demand'!L38,'Table 3 Winter Demand'!L38)","v":0},null,{"$f":"1.25*MAX('Table 2 Summer Demand'!M38,'Table 3 Winter Demand'!M38)","v":0},null,{"$f":"1.25*MAX('Table 2 Summer Demand'!N38,'Table 3 Winter Demand'!N38)","v":0},null,{"$f":"1.25*MAX('Table 2 Summer Demand'!O38,'Table 3 Winter Demand'!O38)","v":0},null,{"$f":"1.25*MAX('Table 2 Summer Demand'!O38,'Table 3 Winter Demand'!O38)","v":0},null,{"$f":"1.25*MAX('Table 2 Summer Demand'!Q38,'Table 3 Winter Demand'!Q38)","v":0}]

{"sheet":"Table 8 Receipt Points","index":8,"n_rows":57,"n_cols":4,"rows_kept":57,"cut":false,"hidden":false,"merged":[[4,0,9,7]]}
[null,null,null,"Table 8"]
[null,null,null,"Description of Network Receipt Points, Attachment F, Attachment 2, Section 7.0 of the OATT "]
[]
[]
["Point(s) of Receipt:  Point(s) of interconnection on the Transmission Provider's Transmission System where capacity and energy will be made available to the Transmission Provider by the Delivering Party under Part II of the Tariff.  The Point(s) of Receipt shall be specified in the Service Agreement for Long-Term Firm Point-To-Point Transmission Service. Receipt points are locations where energy enters the transmission system from Network Resources either via a power plant or interconnection tielines. "]
[]
[]
[]
[]
[]
[]
["Tieline/Plant Name","Ownership","Voltage (kV)"," "]
["Note: Only required for rollover to SPP NITS"]
["Note: It is not necessary to list each generator bus but rather once per plant per transmission voltage level. "]
[]
[]
[]
[" "]
[]
[]
[]
[]
[]
[]
[]
[" "]
[]
[]
[]
[]
[]
[]
[]
[]
[]
[]
[]
[" "]
[]
[]
[]
[]
[]
[]
[]
[]
[]
[]
[]
[]
[]
[]
[]
[]
[]
[]
[" "]

{"sheet":"Table 9 Base Plan Funding","index":9,"n_rows":50,"n_cols":4,"rows_kept":50,"cut":false,"hidden":false,"merged":[[19,0,19,3],[20,2,20,3],[49,0,49,3],[1,0,1,3],[5,0,5,3],[6,0,6,3],[9,0,9,3],[12,0,12,3],[17,0,17,3],[2,0,2,3]]}
["Base Plan Funding Worksheet for New or Changed Designated Resources"]
["Preliminary determination of eligibility for Base Plan funding pursuant to Attachment J, Section III.B.1.  All fields are required.  Applications with incomplete information will be returned.  ONLY ONE REQUEST PER WORKSHEET.  Duplicate this worksheet as needed for multiple requests. "]
["The Following will be taken into consideration by SPP when officially calculating Base Plan Funding applicability:\n1.  All service requests submitted by a customer prior to the study start date will be taken into account when calculating Base Plan Funding eligibility.\n2.  Status of agreements at the time of the open season closing will be used for the offical calculation that determines eligibility for Base Plan Funding. \n3.  Any transmission service requests made after the study start date will not be taken into consideration when determinining Base Plan Funding eligibility. \n4.  Any service with a stop date of at least 12 months out from study start date will be assumed to be exercising its rollover rights for the purposes of calculating Base Plan Funding eligibility, unless the customer elects to include a note in their NITS Agreement stating that they are waiving rollover rights.  This NITS Agreement update must be executed before the study start date in order to be incorporated into the Base Plan Funding eligibility calculations.\n5.  The information in this tab is intended to help customers estimate where they stand in regards to Base Plan Funding thresholds.  When the study commences, SPP will perform calculations for official Base Plan Funding eligibility based on the current status of all existing and requested transmission service as of the study start date.\n6.  If a Customer has multiple NITS Agreements, SPP will combine the resources and loads from the associated NITS Agreements or NITS Applications when performing these Base Plan Funding calculations."]
[]
["Part 1. New or Changed Designated Resource"]
["> List the following information for the new or changed Designated Resource being requested with this Application."]
["> For profiled reservations, use the amount effective in the first year the new or changed DR is planned to be used."]
["OASIS Request #","Planned maximum net dependable capacity* \napplicable to the Transmission Customer (See SPP Criteria 7)\n(MW)","Requested Capacity \n(MW)\n(Should correspond to the OASIS request)","Is this a Wind Resource? (Y/N)"]
[]
["*Note: For wind and solar resources, please note the specific requirements of SPP Criteria Section 12.1.5.3.g."]
[]
["Part 2. System Peak Responsibility"]
["> List the Transmission Customer's projected system peak responsibility determined pursuant to SPP Criteria 2.  On request, the Transmission Customer shall provide the information used to determine the projection."]
["First Year the DR is Planned to Be Used","Corresponding Projected System Peak Responsibility (MW)"]
[]
[]
["Part 3. Existing Designated Resources"]
["> List the accredited and reserved transmission capacity of the Transmission Customer's existing Designated Resources as reflected in Appendix 1 of the NITS Agreement."]
["> Insert additional rows as needed."]
["> For profiled reservations, use the amount effective in the first year the new or changed DR is planned to be used."]
[null,null,"WIND DRs ONLY"]
["Name of Existing Designated Resource\nList all DRs from Appendix 1 of the NITS Agreement","Accredited \nCapacity \nreported to SPP per \nSPP Criteria\n (MW)","Reserved Transmission Capacity for \nWind DRs\n (MW)","Is this a Wind Resource? (Y/N)"]
[]
[]
[]
[]
[]
[]
[]
[]
[]
[]
[]
[]
[]
[]
[]
[]
[]
[]
[]
[]
["Total",{"$f":"SUBTOTAL(109,B23:B42)","v":0},{"$f":"SUBTOTAL(109,C23:C42)","v":0}]
["Calculation of Preliminary Eligibility for Base Plan Funding"]
["Formulas--Do not modify."]
["Resource-to-Load \nRatio\n(Not to exceed 125%)","Wind-to-Load Ratio\n(Not to exceed 20%)"]
[{"$f":"(B43+MIN(B9:C9))/B15","v":{"$error":"#DIV/0!"}},{"$f":"IF(D9=\"Y\",(C43+C9)/B15,\"NA\")","v":"NA"}]
[{"$f":"IF(A47>1.25,\"NOT ELIGIBLE\",\"ELIGIBLE\")","v":{"$error":"#DIV/0!"}},{"$f":"IF(B47=\"NA\",\"NA\",IF(B47>0.2,\"NOT ELIGIBLE\",\"ELIGIBLE\"))","v":"NA"}]
["If either ratio is \"Not Eligible,\" then the request is not eligible for base plan funding."]
["Even if this request is eligible on a stand-alone basis, it may not be eligible if other requests are confirmed prior to this one which cause the ratios to be exceeded. "]